fUSD/lending_fUSD_20250206
["ID","MTS","AMOUNT","RATE_DAILY","PERIOD"]
[351919533,1738843843842,-1351.96,0.00019969,3]
[351919535,1738843843855,-1068.43,0.00019969,3]
[351919537,1738843843864,-77877.86338437,0.00019969,10]
[351919546,1738843843941,-1571.53235332,0.00019969,10]
[351919552,1738843843993,-1457.86285409,0.00019969,10]
[351919554,1738843844004,-709.00241687,0.00019969,10]
[351919556,1738843844018,-455.37695136,0.00019969,10]
[351919714,1738843845646,-380.43,0.00019339,2]
[351919715,1738843845655,-115.63,0.00019869,2]
[351919721,1738843845700,-311.5682628,0.00019869,2]
[351919745,1738843845913,-1189.33499715,0.00019869,2]
[351919747,1738843845929,-1847.88740809,0.00019869,2]
[351919749,1738843845939,-1033.72577595,0.00019872,2]
[351919751,1738843845949,-169067.52228177,0.00019969,10]
[351919755,1738843845971,-919.45000025,0.00019969,10]
[351920424,1738844272729,2000.0,8.123e-05,2]
[351920425,1738844286327,6147.0,8.021e-05,2]
[351920444,1738844952828,-3000.0,8.123e-05,2]
[351920445,1738844952850,-152.504419,9.881e-05,2]
[351920446,1738844952873,-337.108212,9.881e-05,2]
[351920447,1738844952894,-373.0144732,9.881e-05,2]
[351920448,1738844952917,-500.0,9.95e-05,2]
[351920449,1738844952939,-300.0,9.999e-05,2]
[351920450,1738844952962,-1675.92130265,0.0001,2]
[351920451,1738844952985,-5415.45159315,0.0001,2]
[351920452,1738844956859,-10000.0,0.0001,2]
[351920453,1738844957730,-10000.0,0.0001,2]
[351920454,1738844958566,-10000.0,0.0001,2]
[351920455,1738844959513,-10000.0,0.0001,2]
[351920457,1738844960367,-10000.0,0.0001,2]
[351920471,1738845031855,-1228.11889901,0.0001,2]
[351920472,1738845031866,-57593.39873824,0.0001,2]
[351920473,1738845031968,-440.12893311,0.0001,2]
[351920474,1738845032026,-712.01248716,0.0001,2]
[351920475,1738845032309,-14721.65298013,0.0001,2]
[351920534,1738845038037,-1490.24,0.0001,2]
[351920536,1738845038051,-4012.82179323,0.0001,2]
[351920538,1738845038061,-378.38,0.0001,2]
[351920540,1738845038071,-152.69,0.0001,2]
[351920542,1738845038081,-152.13,0.0001,2]
[351920544,1738845038091,-368.42,0.0001,2]
[351920546,1738845038101,-367.59,0.0001,2]
[351920548,1738845038110,-152.504419,0.00010018,2]
[351920550,1738845038120,-337.108212,0.00010018,2]
[351920551,1738845038130,-152.504419,0.00010155,2]
[351920553,1738845038140,-337.108212,0.00010155,2]
[351920556,1738845038150,-500.0,0.00010155,2]
[351920558,1738845038160,-152.504419,0.00010292,2]
[351920561,1738845038170,-337.108212,0.00010292,2]
[351920564,1738845038179,-152.504419,0.00010429,2]
[351920567,1738845038190,-337.108212,0.00010429,2]
[351920570,1738845038204,-152.504419,0.00010566,2]
[351920573,1738845038214,-337.108212,0.00010566,2]
[351920576,1738845038224,-152.504419,0.00010703,2]
[351920579,1738845038234,-337.108212,0.00010703,2]
[351920582,1738845038243,-152.504419,0.0001084,2]
[351920584,1738845038253,-337.108212,0.0001084,2]
[351920587,1738845038262,-500.0,0.00010869,2]
[351920590,1738845038275,-42.17978977,0.00010977,2]
[351920595,1738845038287,-110.32462923,0.00010977,2]
[351920598,1738845038297,-294.68227879,0.00010977,2]
[351920770,1738845039878,-42.42593321,0.00010977,2]
[351920772,1738845039888,-31003.06212196,0.00011,3]
[351920775,1738845039899,-21213.88129159,0.00011,3]
[351920779,1738845039934,-3270.0069114,0.00011,3]
[351920781,1738845039944,-152.504419,0.00011114,2]
[351920783,1738845039953,-337.108212,0.00011114,2]
[351920785,1738845039963,-152.504419,0.00011251,2]
[351920787,1738845039972,-337.108212,0.00011251,2]
[351920789,1738845039982,-152.504419,0.00011388,2]
[351920791,1738845039991,-337.108212,0.00011388,2]
[351920793,1738845040001,-97647.60463289,0.00011989,2]
[351920795,1738845040010,-550.0,0.00013,2]
[351920797,1738845040019,-2000.04642771,0.00013,2]
[351920799,1738845040029,-250.0,0.00013213,2]
[351920801,1738845040038,-196.41,0.00014096,2]
[351920803,1738845040047,-5556.0,0.000145,5]
[351920805,1738845040056,-250.0,0.00014524,2]
[351920807,1738845040066,-165.23,0.00014557,2]
[351920809,1738845040075,-1093.56,0.00014607,2]
[351920811,1738845040084,-700.97,0.00014617,2]
[351920813,1738845040093,-600.0,0.00015,2]
[351920815,1738845040103,-196.41,0.00015859,2]
[351920817,1738845040113,-1000.0,0.00016277,2]
[351920819,1738845040122,-164.22,0.00016509,2]
[351920821,1738845040132,-513.62,0.00016562,2]
[351920823,1738845040142,-484.0,0.00016658,30]
[351920825,1738845040151,-1404.583,0.00016735,2]
[351920827,1738845040160,-500.0,0.00016771,2]
[351920829,1738845040169,-1103.43,0.00016797,2]
[351920831,1738845040178,-700.97,0.00016881,2]
[351920833,1738845040187,-372.36,0.00016896,2]
[351920835,1738845040200,-177.26,0.00016974,2]
[351920837,1738845040209,-650.0,0.00017,2]
[351920839,1738845040218,-174.57,0.00017157,2]
[351920841,1738845040228,-196.41,0.00017621,2]
[351920843,1738845040238,-4190.0,0.00018,3]
[351920845,1738845040248,-1000.0,0.00018312,2]
[351920847,1738845040257,-156.79,0.000186,2]
[351920849,1738845040267,-173.47,0.00018963,2]
[351920851,1738845040276,-204.6,0.00018963,2]
[351920853,1738845040285,-700.0,0.00019,2]
[351920855,1738845040294,-8382.64,0.00019,11]
[351920857,1738845040303,-831.49,0.00019014,2]
[351920859,1738845040312,-500.0,0.00019039,2]
[351920861,1738845040321,-177.26,0.00019096,2]
[351920863,1738845040330,-440.13628618,0.00019139,2]
[351920866,1738845040357,-298.47371382,0.00019139,2]
[351920869,1738845040367,-123.59377665,0.00019145,2]
[351920871,1738845040378,-559.11999999,0.00019145,2]
[351921172,1738845043344,-0.438,0.00019145,2]
[351921178,1738845043388,-17.81822336,0.00019145,2]
[351921179,1738845043397,-314.0,0.00019151,2]
[351921181,1738845043406,-126.82027664,0.00019151,2]
[351921184,1738845043418,-23.17972336,0.00019151,2]
[351921186,1738845043427,-500.0,0.00019178,2]
[351921187,1738845043435,-266.63596133,0.00019178,2]
[351921452,1738845045898,-380.58,0.0001,2]
[351921455,1738845045908,-114.613653,0.00019178,2]
[351922181,1738846232016,-150.0,8.835e-05,2]
[351922182,1738846232026,-300.0,8.835e-05,2]
[351922183,1738846232035,-740.87951664,8.836e-05,2]
[351922184,1738846232073,-383.63666776,8.836e-05,2]
[351922185,1738846232084,-2226.9,8.836e-05,2]
[351922186,1738846232095,-1446.33781593,8.836e-05,2]
[351922187,1738846232108,-2405.1,8.836e-05,2]
[351922188,1738846232136,-12630.87855239,8.836e-05,2]
[351922189,1738846232147,-322.51260265,8.836e-05,2]
[351922190,1738846232159,-1000.0,8.836e-05,2]
[351922191,1738846232194,-650.75124806,8.836e-05,2]
[351922192,1738846232207,-518.94,8.836e-05,2]
[351922193,1738846232219,-46.95999657,8.836e-05,2]
[351922194,1738846232228,-328.87999443,8.836e-05,2]
[351922195,1738846232375,-1370.68264793,8.836e-05,2]
[351922198,1738846232396,-271.5,8.836e-05,2]
[351922202,1738846232425,-992.28399024,8.836e-05,2]
[351922204,1738846232437,-1376.80000004,8.836e-05,2]
[351922460,1738846237861,-468.54598073,8.836e-05,2]
[351922462,1738846237980,-24088.78668663,8.836e-05,2]
[351922463,1738846237996,-6963.6403,8.836e-05,2]
[351922464,1738846238187,-566.57187075,8.836e-05,2]
[351922465,1738846238216,-164.83035,8.836e-05,2]
[351922466,1738846238227,-566.57187073,9.048e-05,2]
[351922467,1738846238236,-566.57187073,9.26e-05,2]
[351922468,1738846238246,-150.0,9.26e-05,2]
[351922469,1738846238256,-255.0,9.718e-05,2]
[351922470,1738846238266,-420.0,9.718e-05,2]
[351922471,1738846238276,-635.478512,9.881e-05,2]
[351922472,1738846238285,-154.401312,9.881e-05,2]
[351922473,1738846238294,-156.489647,9.881e-05,2]
[351922474,1738846238304,-342.773697,9.881e-05,2]
[351922475,1738846238313,-635.478512,0.00010018,2]
[351922476,1738846238323,-342.773697,0.00010018,2]
[351922477,1738846238332,-151.38,0.00010137,2]
[351922479,1738846238342,-635.478512,0.00010155,2]
[351922481,1738846238351,-342.773697,0.00010155,2]
[351922483,1738846238360,-635.478512,0.00010292,2]
[351922485,1738846238370,-342.773697,0.00010292,2]
[351922487,1738846238379,-635.478512,0.00010429,2]
[351922489,1738846238388,-342.773697,0.00010429,2]
[351922491,1738846238397,-635.478512,0.00010566,2]
[351922494,1738846238407,-342.773697,0.00010566,2]
[351922496,1738846238418,-371.67,0.00010602,2]
[351922498,1738846238428,-255.0,0.0001069,2]
[351922500,1738846238437,-287.0,0.0001069,2]
[351922503,1738846238446,-635.478512,0.00010703,2]
[351922506,1738846238457,-342.773697,0.00010703,2]
[351922509,1738846238466,-635.478512,0.0001084,2]
[351922512,1738846238476,-342.773697,0.0001084,2]
[351922515,1738846238485,-500.0,0.00010869,2]
[351922518,1738846238495,-635.478512,0.00010977,2]
[351922521,1738846238505,-342.773697,0.00010977,2]
[351922523,1738846238513,-635.478512,0.00011114,2]
[351922525,1738846238523,-342.773697,0.00011114,2]
[351922527,1738846238533,-635.478512,0.00011251,2]
[351922529,1738846238542,-342.773697,0.00011251,2]
[351922531,1738846238553,-635.478512,0.00011388,2]
[351922533,1738846238564,-342.773697,0.00011388,2]
[351922535,1738846238573,-6641.48781402,0.00011503,2]
[351922537,1738846238583,-550.0,0.00013,2]
[351922539,1738846238594,-724.36,0.00013047,2]
[351922541,1738846238604,-1955.0,0.000132,5]
[351922543,1738846238613,-500.0,0.00014317,2]
[351922545,1738846238622,-512.11,0.00014417,2]
[351922546,1738846238632,-271.58,0.00014502,2]
[351922548,1738846238642,-250.0,0.00014521,2]
[351922551,1738846238652,-403.5,0.00014562,2]
[351922553,1738846238662,-362.0706286,0.0001474,2]
[351922555,1738846238673,-161.92,0.00014749,2]
[351922556,1738846238683,-1004.67,0.00014923,2]
[351922559,1738846238692,-600.0,0.00015,2]
[351922561,1738846238702,-200.0,0.000151,2]
[351922562,1738846238711,-500.0,0.00015187,2]
[351922564,1738846238720,-724.36,0.00015311,2]
[351922566,1738846238730,-300.0,0.00015764,2]
[351922568,1738846238739,-173.6,0.00015952,2]
[351922570,1738846238749,-7030.86,0.00016116,2]
[351922572,1738846238758,-403.5,0.00016382,2]
[351922574,1738846238768,-486.22,0.00016658,30]
[351922576,1738846238778,-194.527,0.00016735,2]
[351922578,1738846238787,-1380.659,0.00016735,2]
[351922580,1738846238798,-1102.39845121,0.00016735,2]
[351922582,1738846238807,-1000.0,0.00016897,2]
[351922584,1738846238816,-500.0,0.00017006,2]
[351922586,1738846238826,-300.0,0.00017134,2]
[351922588,1738846238836,-724.36,0.00017575,2]
[351922590,1738846238845,-150.0,0.00017616,2]
[351922592,1738846238854,-150.0,0.00017616,2]
[351922594,1738846238864,-663.0177345,0.00018,2]
[351922596,1738846238874,-1000.0,0.00018,9]
[351922598,1738846238884,-243.44,0.00018047,2]
[351922600,1738846238893,-150.0,0.00018078,2]
[351922602,1738846238903,-353.61,0.00018082,2]
[351922604,1738846238912,-403.5,0.00018203,2]
[351922605,1738846238922,-150.0,0.00018438,2]
[351922606,1738846238931,-438.62,0.00018438,2]
[351922607,1738846238941,-150.0,0.00018438,2]
[351922608,1738846238950,-333.26,0.00018438,2]
[351922609,1738846238959,-438.62,0.00018438,2]
[351922610,1738846238968,-438.14,0.00018438,2]
[351922611,1738846238977,-150.0,0.00018478,2]
[351922612,1738846238986,-1900.0,0.000187,6]
[351922613,1738846238995,-353.61,0.00018751,2]
[351922614,1738846239004,-372.2,0.00018776,2]
[351922615,1738846239013,-377.45,0.00018794,2]
[351922616,1738846239023,-3900.0,0.000188,6]
[351922617,1738846239032,-372.25,0.00018825,2]
[351922618,1738846239041,-371.87,0.00018879,2]
[351922619,1738846239051,-5900.0,0.000189,6]
[351922620,1738846239060,-310.11773283,0.000189,2]
[351922621,1738846239069,-500.0,0.00018973,2]
[351922622,1738846239078,-637.91,0.0001899,2]
[351922623,1738846239087,-637.91,0.0001899,2]
[351922624,1738846239096,-507.20706873,0.00019,2]
[351922625,1738846239105,-14307.3963936,0.00019,2]
[351922626,1738846239114,-378015.00575787,0.00019,4]
[351922668,1738846239500,-6723.44822542,0.00019,4]
[351922670,1738846239510,-10807.00277988,0.00019,4]
[351922673,1738846239527,-1740.12681873,0.00019,4]
[351922675,1738846239538,-13336.42233272,0.00019,4]
[351922678,1738846239550,-13565.0,0.00019,4]
[351922680,1738846239562,-20613.11336725,0.00019,4]
[351922682,1738846239572,-32874.96524674,0.00019,4]
[351922684,1738846239583,-54163.61980015,0.00019,4]
[351922700,1738846239734,-98127.0,0.00019,2]
[351922702,1738846239747,-43201.37795657,0.00019,2]
[351922704,1738846239757,-1000.0,0.00019,2]
[351922706,1738846239767,-1000.0,0.00019,11]
[351922708,1738846239776,-310.11773278,0.00019007,2]
[351922710,1738846239786,-1000.0,0.00019009,2]
[351922713,1738846239796,-2000.0,0.00019015,2]
[351922716,1738846239806,-1000.0,0.00019025,2]
[351922719,1738846239816,-500.0,0.00019039,2]
[351922723,1738846239825,-1000.0,0.0001905,2]
[351922726,1738846239836,-1000.0,0.00019057,2]
[351922728,1738846239845,-10263.80342084,0.00019067,2]
[351922731,1738846239854,-1000.0,0.00019079,2]
[351922733,1738846239864,-2000.0,0.00019095,2]
[351922737,1738846239874,-1000.0,0.000191,2]
[351922740,1738846239883,-310.11773278,0.00019115,2]
[351922742,1738846239892,-26511.86747122,0.00019115,2]
[351922744,1738846239902,-500.0,0.00019139,2]
[351922746,1738846239912,-1000.0,0.0001915,2]
[351922748,1738846239922,-500.0,0.00019173,2]
[351922750,1738846239932,-225.6232104,0.00019173,2]
[351922752,1738846239941,-162.11028443,0.00019173,2]
[351922754,1738846239951,-153.75922793,0.00019173,2]
[351922756,1738846239960,-500.0,0.00019173,2]
[351922758,1738846239969,-1000.0,0.00019175,2]
[351922760,1738846239979,-1233.46148798,0.00019177,5]
[351922762,1738846239989,-151.0,0.00019177,2]
[351922764,1738846239998,-151.0,0.00019177,2]
[351922766,1738846240007,-151.0,0.00019177,2]
[351922768,1738846240017,-151.0,0.00019177,2]
[351922770,1738846240026,-151.0,0.00019177,2]
[351922772,1738846240035,-151.0,0.00019177,2]
[351922774,1738846240045,-161.18732624,0.00019177,2]
[351922776,1738846240054,-500.0,0.00019177,2]
[351922778,1738846240065,-222.24653098,0.00019177,2]
[351922780,1738846240075,-418.45789232,0.00019177,2]
[351922782,1738846240085,-500.0,0.00019177,2]
[351922784,1738846240094,-420.67326894,0.00019177,2]
[351922786,1738846240103,-500.0,0.00019177,2]
[351922788,1738846240112,-268.05760738,0.00019177,2]
[351922790,1738846240124,-231.94239262,0.00019177,2]
[351922792,1738846240133,-332.74760718,0.00019177,2]
[351922795,1738846240153,-167.25239282,0.00019177,2]
[351922797,1738846240162,-633.69118512,0.00019177,2]
[351922799,1738846240172,-500.0,0.00019177,2]
[351922801,1738846240182,-500.0,0.00019177,2]
[351922803,1738846240192,-500.0,0.00019177,2]
[351922805,1738846240201,-500.0,0.00019177,2]
[351922807,1738846240210,-500.0,0.00019177,2]
[351922809,1738846240219,-500.0,0.00019177,2]
[351922811,1738846240228,-500.0,0.00019177,2]
[351922813,1738846240237,-500.0,0.00019177,2]
[351922815,1738846240246,-500.0,0.00019177,2]
[351922817,1738846240255,-500.0,0.00019177,2]
[351922819,1738846240264,-500.0,0.00019178,2]
[351922821,1738846240273,-500.0,0.00019178,2]
[351922823,1738846240283,-500.0,0.00019178,2]
[351922825,1738846240292,-49.94839629,0.00019178,2]
[351922827,1738846240304,-282.55999991,0.00019178,2]
[351922841,1738846240429,-167.4916038,0.00019178,2]
[351922843,1738846240439,-500.0,0.00019178,2]
[351922845,1738846240449,-500.0,0.00019178,2]
[351922847,1738846240458,-500.0,0.00019178,2]
[351922849,1738846240468,-500.0,0.00019178,2]
[351922851,1738846240477,-500.0,0.00019178,2]
[351922853,1738846240486,-500.0,0.00019178,2]
[351922855,1738846240495,-500.0,0.00019178,2]
[351922857,1738846240504,-500.0,0.00019178,2]
[351922859,1738846240513,-500.0,0.00019178,2]
[351922861,1738846240522,-159.64625559,0.00019178,2]
[351922864,1738846240535,-340.35374441,0.00019178,2]
[351922866,1738846240546,-500.0,0.00019178,2]
[351922868,1738846240560,-109.46676491,0.00019178,2]
[351922908,1738846240938,-390.53323509,0.00019178,2]
[351922910,1738846240948,-106.05780961,0.00019178,2]
[351922912,1738846240959,-417.41300577,0.00019178,2]
[351922914,1738846240968,-500.0,0.00019178,2]
[351922916,1738846240978,-500.0,0.00019178,2]
[351922918,1738846240987,-411.03463216,0.00019178,2]
[351922920,1738846240999,-88.96536784,0.00019178,2]
[351922922,1738846241008,-500.0,0.00019178,2]
[351922924,1738846241018,-225.24842717,0.00019178,2]
[351922928,1738846241043,-274.75157283,0.00019178,2]
[351922930,1738846241053,-71.76379161,0.00019178,2]
[351922932,1738846241064,-428.23620839,0.00019178,2]
[351922934,1738846241073,-500.0,0.00019178,2]
[351922936,1738846241083,-500.0,0.00019178,2]
[351922938,1738846241092,-500.0,0.00019178,2]
[351922940,1738846241101,-460.76057654,0.00019178,2]
[351922942,1738846241113,-39.23942346,0.00019178,2]
[351922944,1738846241123,-379.02507654,0.00019178,2]
[351922946,1738846241134,-120.97492346,0.00019178,2]
[351922948,1738846241143,-500.0,0.00019178,2]
[351922950,1738846241152,-500.0,0.00019178,2]
[351922952,1738846241162,-500.0,0.00019178,2]
[351922954,1738846241171,-500.0,0.00019178,2]
[351922956,1738846241180,-500.0,0.00019178,2]
[351922958,1738846241190,-500.0,0.00019178,2]
[351922960,1738846241199,-500.0,0.00019178,2]
[351922962,1738846241208,-500.0,0.00019178,2]
[351922964,1738846241217,-500.0,0.00019178,2]
[351922966,1738846241226,-500.0,0.00019178,2]
[351922968,1738846241235,-500.0,0.00019178,2]
[351922970,1738846241245,-500.0,0.00019178,2]
[351922972,1738846241255,-500.0,0.00019178,2]
[351922974,1738846241265,-500.0,0.00019178,2]
[351922976,1738846241274,-500.0,0.00019178,2]
[351922978,1738846241283,-500.0,0.00019178,2]
[351922980,1738846241292,-500.0,0.00019178,2]
[351922982,1738846241301,-500.0,0.00019178,2]
[351922984,1738846241311,-500.0,0.00019178,2]
[351922986,1738846241320,-500.0,0.00019178,2]
[351922988,1738846241330,-500.0,0.00019178,2]
[351922990,1738846241339,-500.0,0.00019178,2]
[351922992,1738846241347,-500.0,0.00019178,2]
[351922994,1738846241357,-500.0,0.00019178,2]
[351922996,1738846241366,-500.0,0.00019178,2]
[351922998,1738846241375,-500.0,0.00019178,2]
[351923000,1738846241384,-500.0,0.00019178,2]
[351923002,1738846241393,-500.0,0.00019178,2]
[351923003,1738846241403,-500.0,0.00019178,2]
[351923005,1738846241412,-500.0,0.00019178,2]
[351923008,1738846241421,-500.0,0.00019178,2]
[351923010,1738846241430,-500.0,0.00019178,2]
[351923011,1738846241439,-500.0,0.00019178,2]
[351923013,1738846241449,-500.0,0.00019178,2]
[351923016,1738846241459,-500.0,0.00019178,2]
[351923017,1738846241468,-500.0,0.00019178,2]
[351923018,1738846241477,-500.0,0.00019178,2]
[351923019,1738846241487,-500.0,0.00019178,2]
[351923020,1738846241497,-500.0,0.00019178,2]
[351923021,1738846241506,-105.62507654,0.00019178,2]
[351923026,1738846241538,-394.37492346,0.00019178,2]
[351923028,1738846241547,-500.0,0.00019178,2]
[351923030,1738846241561,-500.0,0.00019178,2]
[351923032,1738846241572,-500.0,0.00019178,2]
[351923034,1738846241582,-604.36,0.00019178,2]
[351923047,1738846241689,-630.95,0.00019178,2]
[351923050,1738846241716,-501.92283432,0.00019178,2]
[351923052,1738846241725,-500.0,0.00019178,2]
[351923054,1738846241734,-500.0,0.00019178,2]
[351923056,1738846241744,-500.0,0.00019178,2]
[351923058,1738846241754,-500.0,0.00019178,2]
[351923060,1738846241763,-500.0,0.00019178,2]
[351923062,1738846241772,-500.0,0.00019178,2]
[351923064,1738846241782,-500.0,0.00019178,2]
[351923066,1738846241791,-500.0,0.00019178,2]
[351923068,1738846241800,-500.0,0.00019178,2]
[351923070,1738846241809,-500.0,0.00019178,2]
[351923072,1738846241819,-500.0,0.00019178,2]
[351923074,1738846241828,-500.0,0.00019178,2]
[351923076,1738846241837,-500.0,0.00019178,2]
[351923078,1738846241847,-500.0,0.00019178,2]
[351923080,1738846241856,-500.0,0.00019178,2]
[351923082,1738846241866,-500.0,0.00019178,2]
[351923084,1738846241876,-500.0,0.00019178,2]
[351923086,1738846241886,-500.0,0.00019178,2]
[351923088,1738846241896,-500.0,0.00019178,2]
[351923090,1738846241905,-500.0,0.00019178,2]
[351923092,1738846241916,-500.0,0.00019178,2]
[351923094,1738846241925,-501.62549504,0.00019178,2]
[351923096,1738846241935,-500.0,0.00019178,2]
[351923098,1738846241944,-500.0,0.00019178,2]
[351923100,1738846241954,-500.0,0.00019178,2]
[351923102,1738846241964,-500.0,0.00019178,2]
[351923104,1738846241974,-500.0,0.00019178,2]
[351923107,1738846241983,-500.0,0.00019178,2]
[351923109,1738846241993,-500.0,0.00019178,2]
[351923111,1738846242002,-500.0,0.00019178,2]
[351923113,1738846242012,-500.0,0.00019178,2]
[351923115,1738846242021,-500.0,0.00019178,2]
[351923116,1738846242030,-500.0,0.00019178,2]
[351923118,1738846242040,-500.0,0.00019178,2]
[351923120,1738846242049,-500.0,0.00019178,2]
[351923122,1738846242058,-500.0,0.00019178,2]
[351923124,1738846242067,-500.0,0.00019178,2]
[351923126,1738846242076,-500.0,0.00019178,2]
[351923128,1738846242085,-500.0,0.00019178,2]
[351923130,1738846242095,-500.0,0.00019178,2]
[351923132,1738846242104,-500.0,0.00019178,2]
[351923134,1738846242113,-500.0,0.00019178,2]
[351923136,1738846242122,-500.0,0.00019178,2]
[351923138,1738846242132,-500.0,0.00019178,2]
[351923140,1738846242142,-500.0,0.00019178,2]
[351923142,1738846242151,-500.0,0.00019178,2]
[351923144,1738846242160,-500.0,0.00019178,2]
[351923146,1738846242170,-500.0,0.00019178,2]
[351923148,1738846242180,-500.0,0.00019178,2]
[351923150,1738846242189,-1171.59,0.00019178,2]
[351923152,1738846242198,-500.0,0.00019178,2]
[351923154,1738846242207,-500.0,0.00019178,2]
[351923156,1738846242216,-500.0,0.00019178,2]
[351923158,1738846242225,-500.0,0.00019178,2]
[351923160,1738846242235,-500.0,0.00019178,2]
[351923162,1738846242244,-500.0,0.00019178,2]
[351923164,1738846242253,-503.11607875,0.00019178,2]
[351923166,1738846242262,-503.62731029,0.00019178,2]
[351923168,1738846242271,-500.0,0.00019178,2]
[351923170,1738846242280,-500.0,0.00019178,2]
[351923172,1738846242289,-500.0,0.00019178,2]
[351923174,1738846242298,-500.0,0.00019178,2]
[351923176,1738846242307,-296.28209229,0.00019178,2]
[351923178,1738846242317,-500.0,0.00019178,2]
[351923180,1738846242326,-500.0,0.00019178,2]
[351923182,1738846242336,-606.84,0.00019178,2]
[351923184,1738846242349,-795.32,0.00019178,2]
[351923187,1738846242359,-500.0,0.00019178,2]
[351923189,1738846242368,-500.0,0.00019178,2]
[351923190,1738846242378,-539.58440937,0.00019178,2]
[351923192,1738846242389,-500.0,0.00019178,2]
[351923194,1738846242398,-500.0,0.00019178,2]
[351923196,1738846242407,-500.0,0.00019178,2]
[351923198,1738846242417,-500.0,0.00019178,2]
[351923200,1738846242426,-500.0,0.00019178,2]
[351923202,1738846242436,-500.0,0.00019178,2]
[351923205,1738846242445,-500.0,0.00019178,2]
[351923206,1738846242455,-500.0,0.00019178,2]
[351923208,1738846242464,-500.0,0.00019178,2]
[351923210,1738846242473,-502.8136121,0.00019178,2]
[351923212,1738846242482,-500.0,0.00019178,2]
[351923214,1738846242492,-500.0,0.00019178,2]
[351923216,1738846242501,-500.0,0.00019178,2]
[351923218,1738846242511,-500.0,0.00019178,2]
[351923220,1738846242520,-500.0,0.00019178,2]
[351923222,1738846242529,-500.0,0.00019178,2]
[351923224,1738846242538,-500.0,0.00019178,2]
[351923226,1738846242548,-500.0,0.00019178,2]
[351923228,1738846242560,-500.0,0.00019178,2]
[351923230,1738846242570,-500.0,0.00019178,2]
[351923232,1738846242579,-500.0,0.00019178,2]
[351923234,1738846242588,-500.0,0.00019178,2]
[351923236,1738846242599,-705.02,0.00019178,2]
[351923238,1738846242607,-500.0,0.00019178,2]
[351923240,1738846242616,-1057.94,0.00019178,2]
[351923242,1738846242626,-500.0,0.00019178,2]
[351923244,1738846242636,-500.0,0.00019178,2]
[351923246,1738846242645,-500.0,0.00019178,2]
[351923248,1738846242654,-500.0,0.00019178,2]
[351923250,1738846242663,-500.0,0.00019178,2]
[351923251,1738846242672,-607.53,0.00019178,2]
[351923253,1738846242682,-718.19,0.00019178,2]
[351923255,1738846242691,-500.0,0.00019178,2]
[351923257,1738846242700,-500.0,0.00019178,2]
[351923259,1738846242709,-500.0,0.00019178,2]
[351923262,1738846242719,-500.0,0.00019178,2]
[351923264,1738846242728,-500.0,0.00019178,2]
[351923266,1738846242738,-500.0,0.00019178,2]
[351923268,1738846242747,-500.0,0.00019178,2]
[351923270,1738846242756,-676.09,0.00019178,2]
[351923272,1738846242765,-500.0,0.00019178,2]
[351923275,1738846242775,-500.0,0.00019178,2]
[351923277,1738846242784,-500.0,0.00019178,2]
[351923281,1738846242793,-446.1231753,0.00019178,2]
[351923284,1738846242803,-500.0,0.00019178,2]
[351923287,1738846242813,-500.0,0.00019178,2]
[351923289,1738846242822,-500.0,0.00019178,2]